bitfinex/quotes_ETHUSD_20250808
["timestamp","ask_amount","ask_price","bid_price","bid_amount"]
[1754678672628,4.861,4049.9,4049.8,0.119499]
[1754678673514,3.86,4049.9,4049.8,0.119499]
[1754678674413,4.861,4049.9,4049.8,0.119499]
[1754678674947,4.86,4049.9,4049.8,0.119499]
[1754678677225,5.59310548,4049.9,4049.8,0.119499]
[1754678684349,5.59510548,4049.9,4049.8,0.119499]
[1754678685852,4.59410548,4049.9,4049.8,0.119499]
[1754678686057,3.861,4049.9,4049.8,0.119499]
[1754678686552,4.862,4049.9,4049.8,0.119499]
[1754678688139,1.003,4049.9,4049.8,0.119499]
[1754678688346,4.858,4049.9,4049.8,0.119499]
[1754678689046,4.857,4049.9,4049.8,0.119499]
[1754678689234,1.003,4049.9,4049.8,0.119499]
[1754678689434,4.857,4049.9,4049.8,0.119499]
[1754678690362,5.58981394,4049.9,4049.8,0.119499]
[1754678693429,4.857,4049.9,4049.8,0.119499]
[1754678693635,4.3044,4049.9,4049.8,0.119499]
[1754678694167,4.8422,4049.9,4049.8,0.119499]
[1754678694459,5.37598175,4049.9,4049.8,0.119499]
[1754678694847,5.37498175,4049.9,4049.8,0.119499]
[1754678697355,5.91609801,4049.9,4049.8,0.119499]
[1754678697877,8.38529478,4049.9,4049.8,0.119499]
[1754678698775,5.91609801,4049.9,4049.8,0.119499]
[1754678699131,8.38529478,4049.9,4049.8,0.119499]
[1754678700548,8.38529478,4049.9,4046.4,9.84158519]
[1754678700549,2.46998962,4048.6,4046.4,9.84158519]
[1754678700752,6.32098962,4048.6,4047.5,2.47064447]
[1754678701077,6.32098962,4048.6,4046.9,0.240599]
[1754678701078,7.83527137,4048.6,4047.1,2.47084993]
[1754678701283,7.83527137,4048.6,4047.4,2.47071022]
[1754678701479,15.34558919,4048.6,4047.0,3.0]
[1754678701687,15.34558919,4048.6,4045.7,0.001]
[1754678701688,0.55,4047.8,4045.7,0.001]
[1754678701977,1.03915852,4047.7,4046.7,9.84158519]
[1754678702180,3.85,4047.6,4045.5,2.47187237]
[1754678702397,0.9805,4047.5,4046.2,2.47145438]
[1754678702547,2.47104454,4046.9,4046.2,2.47145438]
[1754678702749,4.2937,4046.8,4046.2,2.47145438]
[1754678702980,4.2937,4046.8,4045.8,3.0]
[1754678703275,4.2937,4046.8,4045.7,9.84158519]
[1754678703276,4.2937,4046.8,4046.1,2.47149193]
[1754678704065,4.2937,4046.8,4046.3,2.47134084]
[1754678704264,4.2937,4046.8,4046.4,2.47130746]
[1754678704480,0.5378,4047.7,4046.5,9.84158519]
[1754678704678,4.2937,4047.6,4046.5,9.84158519]
[1754678704856,0.9805,4047.5,4046.9,2.47098276]
[1754678705178,0.4427,4047.4,4046.7,2.47109007]
[1754678705351,3.851,4047.3,4046.3,9.84158519]
[1754678705679,3.851,4047.3,4047.0,2.47094899]
[1754678705980,3.851,4047.3,4046.8,2.47107634]
[1754678705981,0.4427,4047.2,4046.8,2.47103217]
[1754678706385,0.4427,4047.1,4046.3,9.84158519]
[1754678706583,3.851,4047.0,4046.8,2.47108826]
[1754678706882,0.4427,4047.7,4047.4,2.47067632]
[1754678707047,3.851,4047.6,4047.4,2.47067632]
[1754678707247,4.2937,4047.6,4047.2,2.47079483]
[1754678707481,4.2937,4047.6,4047.3,2.47077679]
[1754678707669,4.2937,4047.6,4047.4,2.47066862]
[1754678707852,0.4427,4048.2,4047.1,9.84158519]
[1754678708070,3.85,4048.1,4047.1,9.84158519]
[1754678708274,3.85,4048.1,4047.8,2.47046609]
[1754678708484,2.47000138,4048.6,4047.9,2.47041675]
[1754678708485,3.85,4048.0,4047.9,2.47041675]
[1754678708679,0.4427,4048.8,4048.2,2.47018435]
[1754678708876,3.851,4048.7,4048.2,2.47018435]
[1754678709202,3.851,4048.6,4048.5,2.47005063]
[1754678709377,7.115651,4049.0,4048.5,2.47005063]
[1754678709571,3.85,4048.9,4048.6,2.46995083]
[1754678710083,0.4427,4048.8,4048.6,2.46995083]
[1754678710289,0.4427,4048.8,4048.6,2.46998303]
[1754678711008,0.4427,4048.8,4048.7,0.1232]
[1754678711169,4.2927,4048.8,4048.7,0.1232]
[1754678711508,3.85,4048.8,4048.7,2.59312861]
[1754678711862,5.931,4049.0,4048.7,0.1232]
[1754678712067,3.85,4048.8,4048.7,2.59310944]
[1754678712294,5.931,4049.0,4048.7,2.59310944]
[1754678712608,5.931,4049.0,4048.9,2.46980661]
[1754678712787,9.781,4049.0,4048.8,2.46985939]
[1754678713463,9.781,4049.0,4048.9,2.46980661]
[1754678713659,5.931,4049.0,4048.9,2.46980661]
[1754678713865,9.78,4049.0,4048.9,2.46980661]
[1754678714107,9.78,4049.0,4048.7,0.1232]
[1754678714336,9.78,4049.0,4048.9,2.46980661]
[1754678714790,5.931,4049.0,4048.9,2.46980661]
[1754678714974,3.849,4049.0,4048.9,2.46980661]
[1754678715302,3.849,4049.0,4048.8,3.0]
[1754678715466,3.849,4049.0,4048.7,3.1232]
[1754678715690,3.849,4049.0,4048.9,2.46975698]
[1754678716008,4.2917,4049.0,4048.9,2.46980661]
[1754678716398,3.849,4049.0,4048.7,0.1232]
[1754678716987,0.9805,4048.9,4048.7,0.1232]
[1754678717383,0.4427,4048.8,4048.7,0.1232]
[1754678717719,0.4427,4048.8,4048.7,2.59312861]
[1754678718107,0.4427,4048.8,4048.7,0.1232]
[1754678718313,0.9805,4048.8,4048.7,0.1232]
[1754678720436,13.7749028,4048.8,4048.7,0.1232]
[1754678720720,2.47029558,4048.1,4047.9,0.1232]
[1754678720923,3.847,4048.0,4047.9,0.1232]
[1754678721237,4.8275,4048.0,4047.9,0.1232]
[1754678721524,8.03995529,4048.0,4047.9,0.1232]
[1754678721886,5.56959956,4048.0,4047.9,0.1232]
[1754678722115,8.03995529,4048.0,4047.9,0.1232]
[1754678722518,15.41118475,4048.0,4047.6,0.1232]
[1754678722718,15.41118475,4048.0,4046.2,0.001]
[1754678722719,2.47092399,4047.1,4046.9,0.1232]
[1754678722923,3.847,4047.0,4046.9,0.1232]
[1754678723135,7.29846614,4047.0,4046.9,0.1232]
[1754678723337,2.47139361,4046.3,4046.2,0.001]
[1754678723632,6.31839361,4046.3,4046.2,0.001]
[1754678723820,7.29889361,4046.3,4046.2,0.001]
[1754678724200,2.47157686,4046.0,4045.9,0.742028]
[1754678724529,6.44177686,4046.0,4045.9,0.742028]
[1754678724732,8.41044389,4046.0,4045.9,0.742028]
[1754678724936,5.93886703,4046.0,4045.8,0.001]
[1754678725132,3.45103795,4045.9,4045.8,0.001]
[1754678725332,0.9794,4045.9,4045.8,0.001]
[1754678725712,7.00103795,4045.9,4045.8,0.001]
[1754678725905,8.44424261,4045.9,4045.8,0.001]
[1754678726633,6.27060466,4045.9,4045.8,0.001]
[1754678727205,8.74224261,4045.9,4045.8,0.001]
[1754678727919,4.89424261,4045.9,4045.8,0.001]
[1754678728119,7.29803795,4045.9,4045.8,0.001]
[1754678728724,8.04054695,4045.9,4045.8,0.001]
[1754678728948,5.568909,4045.9,4045.8,0.001]
[1754678729924,1.721909,4045.9,4045.8,0.001]
[1754678730126,4.8274,4045.9,4045.8,0.001]
[1754678730341,5.62246,4045.9,4045.8,0.001]
[1754678730747,0.4519,4045.9,4045.8,0.001]
[1754678730941,4.2999,4045.9,4045.8,0.001]
[1754678731243,4.8274,4045.9,4045.8,0.001]
[1754678734045,7.29903795,4045.9,4045.8,0.001]
[1754678734244,10.84903795,4045.9,4045.8,0.001]
[1754678734408,10.84903795,4045.9,4044.9,0.001]
[1754678734409,2.47199213,4045.4,4044.9,0.001]
[1754678734613,3.971,4045.3,4044.9,0.001]
[1754678734814,1.1034,4045.3,4044.9,0.001]
[1754678735045,4.8274,4045.2,4044.9,0.001]
[1754678735243,2.47218788,4045.0,4044.9,0.001]
[1754678735451,6.32018788,4045.0,4044.9,0.001]
[1754678735653,7.29958788,4045.0,4044.9,0.001]
[1754678735954,7.42358788,4045.0,4044.9,0.001]
[1754678736159,2.47243237,4044.6,4044.5,0.001]
[1754678736323,13.29990662,4044.6,4044.5,0.001]
[1754678736516,14.40330662,4044.6,4044.5,0.001]
[1754678738256,14.08356435,4044.6,4044.5,1e-08]
[1754678738456,17.93046715,4044.6,4044.5,1e-08]
[1754678738649,14.08346715,4044.6,4044.5,1e-08]
[1754678738955,17.93146715,4044.6,4044.5,1e-08]
[1754678739403,17.93146715,4044.6,4042.4,3.0]
[1754678739404,6.0224935,4044.5,4041.0,0.0821]
[1754678739564,6.0224935,4044.5,4042.0,2.47401317]
[1754678739565,2.47348308,4042.9,4042.0,2.47401317]
[1754678739769,2.47348308,4042.9,4041.2,0.004]
[1754678739770,2.47383141,4042.4,4041.2,0.004]
[1754678739968,3.847,4042.3,4041.8,2.4740969]
[1754678740259,3.847,4042.2,4042.0,0.124]
[1754678740458,0.124,4042.9,4042.2,0.124]
[1754678740635,3.847,4042.8,4042.3,2.47383915]
[1754678741239,3.847,4042.8,4042.2,0.124]
[1754678741436,2.47366453,4042.6,4042.2,0.124]
[1754678741764,3.848,4042.5,4042.2,0.124]
[1754678742564,0.124,4042.9,4042.2,0.124]
[1754678742767,3.848,4042.8,4042.4,2.47373536]
[1754678742977,4.2999,4042.8,4042.2,0.124]
[1754678743177,2.47359437,4042.7,4042.2,0.124]
[1754678743481,2.47359437,4042.7,4041.0,2.47459329]
[1754678743482,0.124,4042.4,4041.9,0.124]
[1754678743686,0.4519,4043.1,4041.5,0.004]
[1754678743981,0.124,4042.8,4042.2,2.59788225]
[1754678744139,0.124,4042.8,4042.3,2.47383915]
[1754678744340,3.848,4042.7,4042.0,0.0861]
[1754678744539,3.848,4042.6,4041.5,2.47432563]
[1754678744777,0.124,4043.2,4041.6,3.0861]
[1754678744778,3.848,4042.5,4041.6,3.0861]
[1754678745086,3.848,4042.5,4042.3,2.47380625]
[1754678745368,3.848,4042.5,4042.4,0.124]
[1754678745695,3.848,4042.5,4042.4,2.59777795]
[1754678745907,3.848,4042.5,4042.4,0.124]
[1754678746074,3.848,4042.5,4042.4,2.59777795]
[1754678746400,0.124,4043.2,4042.4,0.124]
[1754678746700,0.124,4043.2,4041.7,0.001]
[1754678746701,3.848,4043.1,4042.6,2.59764835]
[1754678746857,3.848,4043.0,4042.6,0.124]
[1754678747057,3.848,4043.0,4042.6,2.5976555]
[1754678747358,3.848,4043.0,4042.7,2.47359206]
[1754678747564,0.4519,4043.7,4043.1,2.47334965]
[1754678747889,3.849,4043.6,4043.0,0.124]
[1754678748069,0.4519,4043.7,4043.1,2.47330339]
[1754678748268,3.849,4043.6,4043.1,2.47333501]
[1754678748467,3.849,4043.6,4043.0,0.124]
[1754678748672,3.848,4043.5,4043.1,2.47330143]
[1754678749461,3.848,4043.5,4043.0,0.124]
[1754678749688,0.52671746,4043.7,4043.0,0.124]
[1754678749907,3.848,4043.6,4043.2,2.47324119]
[1754678750208,3.848,4043.6,4043.0,2.59739297]
[1754678750209,4.8274,4043.6,4043.0,0.124]
[1754678750509,0.97861746,4043.5,4043.0,0.124]
[1754678750670,5.23635339,4043.6,4040.0,2.47519]
[1754678750671,2.47335134,4043.1,4041.8,2.47414518]
[1754678750986,2.47335134,4043.1,4042.1,0.124]
[1754678750987,0.124,4042.9,4042.1,0.124]
[1754678751173,1.140271,4042.8,4042.1,0.124]
[1754678751384,1.50611746,4042.7,4042.1,0.124]
[1754678751688,2.47384039,4042.3,4042.1,0.124]
[1754678751891,4.37471746,4042.2,4042.1,0.124]
[1754678752064,7.82801781,4042.2,4041.7,0.001]
[1754678752264,1.50611746,4042.1,4041.7,0.125]
[1754678752461,0.52671746,4042.0,4041.7,0.125]
[1754678752664,0.52671746,4041.9,4041.7,0.001]
[1754678752869,6.84986264,4041.8,4041.7,0.001]
[1754678753198,8.50918054,4041.8,4041.7,0.001]
[1754678753400,9.26351369,4041.8,4041.7,0.001]
[1754678753601,9.80163783,4041.8,4041.7,0.001]
[1754678753806,1.50611746,4041.8,4041.7,0.001]
[1754678754012,8.61536801,4041.8,4041.7,0.001]
[1754678754377,7.95326264,4041.8,4041.7,0.001]
[1754678754998,8.50326264,4041.8,4041.7,0.001]
[1754678755185,9.96079065,4041.8,4041.7,0.001]
[1754678755377,11.32730396,4041.8,4041.7,0.001]
[1754678757483,5.47911746,4041.8,4041.7,0.001]
[1754678758209,1.53236502,4041.8,4041.7,0.001]
[1754678758414,4.49971746,4041.8,4041.7,0.001]
[1754678758600,0.65071746,4041.8,4041.7,0.001]
[1754678758914,4.37571746,4041.8,4041.7,2.47520639]
[1754678759114,0.52671746,4041.8,4041.7,2.47520639]
[1754678759284,0.52671746,4041.8,4041.7,2.59920639]
[1754678759612,4.37571746,4041.8,4041.7,2.59920639]
[1754678760186,4.37822282,4041.8,4041.7,2.59920639]
[1754678761794,4.37822282,4041.8,4041.7,0.125]
[1754678762004,5.88149795,4041.8,4041.7,0.001]
[1754678762312,9.01717165,4041.8,4041.7,0.001]
[1754678762476,5.88149795,4041.8,4041.7,0.001]
[1754678762986,4.37822282,4041.8,4041.7,0.001]
[1754678763389,4.84932282,4041.8,4041.7,0.001]
[1754678763800,4.98757644,4041.8,4041.7,0.001]
[1754678764008,4.84932282,4041.8,4041.7,0.001]
[1754678764394,6.30719863,4041.8,4041.7,0.001]
[1754678764788,5.83609863,4041.8,4041.7,2.47520639]
[1754678764999,5.83609863,4041.8,4041.7,0.001]
[1754678765196,6.48492849,4041.8,4041.7,0.001]
[1754678765515,5.63640713,4041.8,4041.7,0.001]
[1754678765687,5.63660178,4041.8,4041.7,0.001]
[1754678766206,5.63660178,4041.8,4041.7,2.47520639]
[1754678766403,4.51667192,4041.8,4041.7,0.001]
[1754678766613,4.51667192,4041.8,4041.5,0.001]
[1754678766817,1.32966792,4041.6,4041.5,2.47532032]
[1754678767127,5.84633984,4041.6,4041.5,2.47532032]
[1754678767309,0.66767192,4041.6,4041.5,2.47532032]
[1754678767614,5.70842549,4041.6,4041.5,2.47532032]
[1754678767823,5.84687459,4041.6,4041.5,2.47532032]
[1754678768116,4.37822282,4041.6,4041.5,2.47532032]
[1754678768890,4.84932282,4041.6,4041.5,2.47532032]
[1754678769085,4.84932282,4041.6,4041.5,0.001]
[1754678769308,5.51612888,4041.6,4041.5,0.001]
[1754678769509,6.84633155,4041.6,4041.5,0.001]
[1754678769788,5.51612888,4041.6,4041.5,4.311]
[1754678770014,6.84633155,4041.6,4041.5,0.001]
[1754678770228,6.44817657,4041.6,4041.5,0.001]
[1754678770432,9.59644418,4041.6,4041.5,0.001]
[1754678770799,3.02433044,4041.5,4041.0,0.001]
[1754678770998,8.88155481,4041.6,4041.0,2.47563499]
[1754678770999,1.33114499,4041.1,4041.0,2.47563499]
[1754678771302,5.8477893,4041.1,4041.0,0.001]
[1754678772037,6.3188893,4041.1,4041.0,0.001]
[1754678772326,4.98792888,4041.1,4041.0,2.47563499]
[1754678772520,0.66782888,4041.1,4041.0,2.47563499]
[1754678772721,4.51682888,4041.1,4041.0,2.47563499]
[1754678772901,4.98794413,4041.1,4041.0,2.47563499]
[1754678773096,5.51614413,4041.1,4041.0,0.001]
[1754678773613,6.40323342,4041.1,4041.0,0.001]
[1754678773996,5.51614413,4041.1,4041.0,0.001]
[1754678774418,6.40322869,4041.1,4041.0,0.001]
[1754678774697,8.77653679,4041.1,4041.0,0.001]
[1754678774912,10.10749721,4041.1,4041.0,0.001]
[1754678775195,7.63292346,4041.1,4041.0,0.001]
[1754678775523,10.10741058,4041.1,4041.0,0.001]
[1754678775824,7.63283683,4041.1,4041.0,0.001]
[1754678776012,4.5167575,4041.1,4041.0,0.001]
[1754678776198,6.84701792,4041.1,4041.0,0.001]
[1754678776399,7.99063125,4041.1,4041.0,0.001]
[1754678777345,8.54063125,4041.1,4041.0,0.001]
[1754678777795,9.87159167,4041.1,4041.0,0.001]
[1754678777995,9.87159167,4041.1,4039.0,0.499]
[1754678777996,0.55,4040.8,4039.0,0.499]
[1754678778330,0.55,4041.0,4039.0,0.499]
[1754678778331,0.66460992,4039.9,4039.0,0.499]
[1754678778536,0.52922282,4039.8,4039.7,2.47543134]
[1754678778831,4.37822282,4039.8,4039.4,2.4755956]
[1754678779051,0.52922282,4039.7,4039.0,0.499]
[1754678779224,3.849,4039.7,4039.6,2.47549262]
[1754678779545,0.66460992,4040.2,4040.1,2.47518625]
[1754678779664,4.37969534,4040.2,4040.1,2.47518625]
[1754678779815,6.56188176,4040.2,4039.8,2.47536465]
[1754678780020,0.53169534,4040.1,4039.8,2.47536465]
[1754678780202,4.37969534,4040.0,4039.9,2.47530879]
[1754678780403,4.37969534,4040.0,4039.8,2.47535288]
[1754678780616,0.53169534,4039.9,4039.8,2.47535288]
[1754678780929,1.53099534,4039.9,4039.5,2.47555284]
[1754678781227,1.00279534,4039.8,4039.0,0.499]
[1754678781439,2.47579906,4039.1,4039.0,0.499]
[1754678781741,7.87409906,4039.1,4039.0,0.499]
[1754678781903,0.53169534,4039.1,4039.0,0.499]
[1754678782093,4.38069534,4039.1,4039.0,0.499]
[1754678782296,7.32409906,4039.1,4039.0,0.499]
[1754678782494,8.88831469,4039.1,4039.0,0.499]
[1754678782690,2.56351563,4039.1,4039.0,0.499]
[1754678782896,7.87509906,4039.1,4039.0,0.499]
[1754678783131,5.3803654,4039.1,4039.0,0.499]
[1754678783658,7.85616446,4039.1,4039.0,0.499]
[1754678783820,1.5303654,4039.1,4039.0,0.499]
[1754678784019,3.852,4039.1,4039.0,2.97486036]
[1754678784225,0.09923622,4040.2,4040.1,2.47518625]
[1754678784426,1.75937824,4041.6,4041.5,2.47432883]
[1754678784721,1.75937824,4041.6,4040.1,3.005]
[1754678784722,3.875,4041.6,4040.1,3.005]
[1754678784926,3.875,4041.6,4040.8,2.47475745]
[1754678785120,4.3462,4041.6,4041.0,2.47458024]
[1754678785336,4.3462,4041.6,4041.0,2.47459477]
[1754678785568,4.3462,4041.6,4041.1,2.47455254]
[1754678785856,4.8344,4041.5,4041.2,0.23054243]
[1754678786154,0.4822,4042.0,4041.3,0.23054243]
[1754678786334,0.4822,4042.0,4040.2,12.32398633]
[1754678786335,3.881,4041.9,4041.6,2.47426013]
[1754678786538,3.881,4041.9,4041.7,0.23054243]
[1754678786870,0.9534,4041.8,4040.6,0.0636]
[1754678787023,0.9534,4041.8,4041.3,2.4744489]
[1754678787220,0.9534,4041.8,4041.4,0.23054065]
[1754678787460,0.9534,4041.8,4041.5,0.23054065]
[1754678787620,0.9534,4041.8,4041.6,0.23054065]
[1754678787820,0.9534,4041.8,4041.7,0.23054065]
[1754678788444,4.3522,4041.8,4041.7,0.23054065]
[1754678788633,4.3632,4041.8,4041.7,0.23054065]
[1754678789025,0.124,4041.9,4041.7,0.23054065]
[1754678789238,0.4822,4042.3,4041.9,2.47403862]
[1754678789426,0.124,4042.2,4041.6,0.124]
[1754678789624,5.945,4042.8,4042.7,2.47359437]
[1754678789855,9.952,4042.8,4042.7,0.23047529]
[1754678790057,5.945,4042.8,4042.7,2.70406966]
[1754678790225,9.828,4042.8,4042.7,2.70406966]
[1754678790661,9.828,4042.8,4042.7,0.23047529]
[1754678790868,10.2992,4042.8,4042.7,0.23047529]
[1754678791458,14.95885319,4042.8,4042.7,0.23047529]
[1754678791660,12.48532,4042.8,4042.7,0.23047529]
[1754678791866,14.95885319,4042.8,4042.7,0.23047529]
[1754678792060,14.95885319,4042.8,4041.8,2.47410618]
[1754678792061,2.4738041,4042.4,4041.7,2.59820535]
[1754678792262,4.007,4042.3,4041.8,0.23037188]
[1754678792466,4.007,4042.3,4041.9,0.23037188]
[1754678792760,0.4712,4042.2,4042.0,0.23037188]
[1754678792959,2.47395237,4042.2,4042.1,0.23037188]
[1754678793462,4.007,4042.3,4042.1,0.23037188]
[1754678793757,4.007,4042.3,4040.9,2.53825305]
[1754678793758,0.124,4042.3,4042.2,0.23037188]
[1754678793966,4.005,4042.3,4042.2,0.23037188]
[1754678794678,0.124,4042.3,4042.2,2.70427223]
[1754678794964,3.88,4042.3,4042.2,2.70427166]
[1754678795143,5.945,4042.8,4042.7,2.47359437]
[1754678795338,5.945,4042.8,4042.2,0.35437188]
[1754678795339,5.945,4042.8,4042.6,2.47365376]
[1754678795563,5.945,4042.8,4042.7,2.47359437]
[1754678795765,5.945,4042.8,4042.7,2.70381065]
[1754678795926,9.824,4042.8,4042.7,2.47359437]
[1754678796132,9.824,4042.8,4042.7,2.70381308]
[1754678796738,5.945,4042.8,4042.7,2.70381308]
[1754678796943,9.824,4042.8,4042.7,2.70381308]
[1754678798131,9.822,4042.8,4042.7,2.70381308]
[1754678798335,0.6062,4043.6,4043.0,2.47341083]
[1754678798638,3.879,4043.1,4043.0,2.70362954]
[1754678798846,3.879,4043.1,4043.0,2.82762954]
[1754678799238,3.877,4043.1,4043.0,2.82762954]
[1754678800257,3.877,4043.1,4043.0,0.35421871]
[1754678800587,3.877,4043.1,4042.5,2.47368223]
[1754678800588,4.8304,4043.1,4042.8,0.124]
[1754678800875,2.47363987,4042.7,4042.4,0.124]
[1754678801063,6.47167798,4042.6,4042.0,0.124]
[1754678801369,3.875,4042.5,4042.4,2.47377795]
[1754678801537,3.875,4042.5,4042.4,2.82758927]
[1754678801938,3.875,4042.5,4042.4,0.35381132]
[1754678802265,4.8284,4042.5,4042.4,0.124]
[1754678802432,4.8284,4042.5,4041.5,3.0]
[1754678802433,4.9524,4042.5,4041.9,0.124]
[1754678802640,4.9524,4042.5,4042.0,2.7037645]
[1754678802862,0.9534,4042.4,4042.1,0.22975964]
[1754678803062,3.999,4042.5,4042.2,0.22975964]
[1754678803259,0.9534,4042.3,4041.9,2.59807829]
[1754678803566,0.9534,4042.3,4041.5,3.0]
[1754678803567,7.30430069,4042.2,4042.0,0.22973693]
[1754678803768,4.0,4042.1,4041.5,2.59828636]
[1754678803937,4.99011025,4042.1,4041.6,0.22975096]
[1754678804141,4.0,4042.1,4041.7,0.22975096]
[1754678804340,4.3582,4042.1,4041.8,0.17975096]
[1754678804557,0.9534,4042.0,4041.4,2.47437975]
[1754678804764,0.9534,4042.0,4041.5,0.124]
[1754678804963,0.4712,4041.9,4041.5,0.124]
[1754678805160,3.876,4041.8,4041.5,0.124]
[1754678805352,3.876,4041.8,4041.5,2.59829745]
[1754678805547,0.4712,4041.7,4041.5,0.124]
[1754678805874,3.42762921,4041.7,4041.5,0.124]
[1754678806039,1.68376292,4041.6,4041.5,0.124]
[1754678806262,1.0774,4041.6,4041.0,2.59858934]
[1754678806566,3.881,4041.5,4041.0,2.59858934]
[1754678806747,3.881,4041.5,4041.0,2.59858419]
[1754678807260,3.881,4041.5,4041.2,2.47445877]
[1754678807566,3.881,4041.5,4041.2,2.47450835]
[1754678807866,3.881,4041.5,4041.3,0.124]
[1754678808565,3.881,4041.5,4041.3,2.5984492]
[1754678808765,3.881,4041.5,4041.3,0.124]
[1754678809253,0.124,4041.8,4041.3,2.59845129]
[1754678809441,3.878,4041.7,4041.6,0.124]
[1754678810471,0.002,4043.1,4043.0,2.47341083]
[1754678810650,0.002,4043.1,4043.0,14.87379716]
[1754678810846,0.4712,4045.3,4043.2,3.0]
[1754678811052,0.4712,4045.3,4043.0,15.33898633]
[1754678811053,3.923,4045.2,4044.5,2.47249158]
[1754678811250,3.923,4045.2,4043.9,3.0]
[1754678811652,3.923,4045.2,4044.1,2.47273806]
[1754678811862,3.923,4045.2,4043.9,3.0]
[1754678812066,3.923,4045.2,4044.0,2.4727992]
[1754678812269,3.923,4045.2,4044.7,2.47232036]
[1754678812768,4.3942,4045.2,4044.5,2.47248826]
[1754678812968,0.9534,4045.1,4043.2,0.005]
[1754678813138,0.9534,4045.1,4044.5,2.47247363]
[1754678813334,0.9534,4045.1,4043.5,3.0]
[1754678813540,0.9534,4045.1,4044.7,2.47233602]
[1754678813741,0.9534,4045.1,4044.4,2.47250392]
[1754678813742,0.9534,4045.1,4044.6,2.47242958]
[1754678814362,3.42552831,4045.1,4044.2,2.47261583]
[1754678814771,0.9534,4045.1,4044.2,2.47264662]
[1754678814964,0.9534,4045.1,4043.6,3.005]
[1754678815162,0.9534,4045.1,4044.6,2.47243237]
[1754678815546,0.9534,4045.1,4044.5,2.47248026]
[1754678815753,0.9534,4045.1,4044.6,2.47242314]
[1754678815954,0.9534,4045.1,4044.7,2.47233547]
[1754678816159,0.9534,4045.1,4044.6,2.47238732]
[1754678816376,0.9534,4045.1,4044.7,0.23014158]
[1754678816562,0.9534,4045.1,4044.8,0.23014158]
[1754678816877,0.9534,4045.1,4044.0,3.0]
[1754678816878,3.919,4045.0,4044.9,0.23014158]
[1754678817444,3.919,4045.0,4044.9,2.70239058]
[1754678818361,3.919,4045.0,4044.9,0.23014158]
[1754678819984,3.919,4045.0,4044.9,2.70239058]
[1754678820289,0.002,4045.8,4044.9,0.23014158]
[1754678820576,0.002,4045.8,4045.0,2.70227908]
[1754678820577,3.912,4045.7,4045.0,2.70227908]
[1754678820743,3.912,4045.7,4045.6,0.1232]
[1754678820947,4.3725,4045.7,4045.6,0.35334158]
[1754678821149,3.912,4045.7,4045.6,2.82516281]
[1754678821378,0.002,4045.8,4045.7,2.47176014]
[1754678821568,0.002,4045.8,4045.7,2.70190172]
[1754678821878,0.002,4045.8,4045.7,2.82510172]
[1754678822961,1e-08,4045.8,4045.7,5.77830172]
[1754678824260,1e-08,4045.8,4045.7,5.77745848]
[1754678825373,1e-08,4045.8,4045.7,9.68245848]
[1754678826505,1e-08,4045.8,4045.7,5.70105848]
[1754678826696,0.99080001,4045.8,4045.7,0.22929834]
[1754678827000,1e-08,4045.8,4045.7,2.70105848]
[1754678827461,0.99080001,4045.8,4045.7,0.22929834]
[1754678827980,1.33703282,4045.8,4045.7,0.22929834]
[1754678828184,0.99080001,4045.8,4045.7,0.22929834]
[1754678828397,0.99080001,4045.8,4044.6,2.47238033]
[1754678828398,3.46250367,4045.8,4043.8,3.906]
[1754678828597,2.47170367,4045.8,4045.0,2.47213263]
[1754678828893,3.46256411,4045.7,4044.7,2.47231469]
[1754678829061,4.4353,4045.6,4044.9,2.47220043]
[1754678829262,4.8958,4045.6,4044.7,2.47231091]
[1754678829467,2.47199354,4045.4,4044.6,2.4724235]
[1754678829697,1.48038,4045.5,4043.5,2.47308861]
[1754678829698,0.9908,4045.3,4043.5,2.47308861]
[1754678829884,0.9908,4045.3,4042.8,2.473489]
[1754678829885,2.47217451,4045.1,4044.2,2.47263898]
[1754678830088,2.47217451,4045.1,4044.3,2.47260219]
[1754678830269,0.9908,4045.0,4044.2,2.47267065]
[1754678830465,3.904,4044.9,4044.4,3.0]
[1754678830691,0.9908,4044.8,4043.4,3.903]
[1754678830891,0.9908,4044.8,4044.2,2.47266167]
[1754678831066,0.9908,4044.8,4044.7,2.47237125]
[1754678831395,0.9908,4044.8,4044.6,2.47243011]
[1754678831764,0.9908,4044.8,4044.7,2.47237125]
[1754678831964,0.9908,4044.8,4043.7,3.0]
[1754678832159,0.9908,4044.8,4043.8,2.4729215]
[1754678832387,0.9908,4044.8,4044.6,2.47238833]
[1754678832586,3.904,4044.9,4044.8,2.47231012]
[1754678832998,0.9908,4045.2,4045.1,2.47212677]
[1754678833201,3.901,4045.2,4045.1,2.47212677]
[1754678833381,3.901,4045.2,4045.1,2.59612677]
[1754678834566,3.899,4045.6,4045.1,3.124]
[1754678834903,3.899,4045.6,4045.5,2.59508233]
[1754678836113,1e-08,4045.8,4045.7,2.47176014]
[1754678836472,1e-08,4045.8,4045.7,2.59496014]
[1754678836972,1e-08,4045.8,4045.7,5.59496014]
[1754678837794,1e-08,4045.8,4045.7,5.82926014]
[1754678839017,1e-08,4045.8,4045.7,6.44126014]
[1754678839677,1e-08,4046.3,4046.2,2.47145469]
[1754678840009,1e-08,4046.3,4046.2,19.99179876]
[1754678840383,1e-08,4046.3,4046.2,20.64146043]
[1754678841089,1e-08,4046.3,4046.2,5.82481636]
[1754678841500,0.99080001,4046.3,4046.2,2.82481636]
[1754678842417,1e-08,4046.3,4046.2,2.82481636]
[1754678842823,1e-08,4046.3,4046.2,2.8495309]
[1754678843280,1e-08,4046.3,4046.2,2.82481636]